bitfinex-derivatives/quotes_BNBF0:USTF0_20250521
["timestamp","ask_amount","ask_price","bid_price","bid_amount"]
[1747831700742,2.27556417,654.74,653.98,1.16475932]
[1747831701248,2.27556417,654.74,653.99,1.16475932]
[1747831701950,2.27556417,654.74,653.97,0.30546856]
[1747831702150,2.27556417,654.74,654.0,0.30546856]
[1747831703946,2.27556417,654.66,654.0,0.30546856]
[1747831704151,2.27556417,654.66,653.83,0.12213125]
[1747831704351,2.27556417,654.66,653.84,0.30558166]
[1747831704652,2.27556417,654.66,653.83,0.12213125]
[1747831704653,2.27556417,654.66,653.85,0.30558166]
[1747831704851,2.27556417,654.66,653.86,0.30558166]
[1747831705050,2.27556417,654.66,653.87,1.4697636]
[1747831705250,2.27556417,654.66,653.88,0.61105022]
[1747831705445,2.27556417,654.66,653.89,0.30558166]
[1747831705645,2.27556417,654.66,653.9,0.30558166]
[1747831705851,2.27556417,654.66,653.91,1.16418194]
[1747831706052,2.27556417,654.66,653.92,0.30558166]
[1747831706251,2.27556417,654.66,653.93,0.30558287]
[1747831706452,2.27556417,654.69,653.93,1.4696505]
[1747831706851,2.27556417,654.69,653.94,1.16418194]
[1747831707855,2.27556417,654.69,653.95,0.30546856]
[1747831708555,2.27556417,654.69,653.96,1.16418194]
[1747831709351,2.27556417,654.97,653.96,1.16418194]
[1747831709555,2.27556417,654.97,653.97,0.30546856]
[1747831710358,2.27556417,654.97,653.98,1.16418194]
[1747831710752,2.27556417,654.97,653.99,0.30546856]
[1747831711058,2.27556417,654.97,654.0,1.16418194]
[1747831711857,2.27556417,654.97,653.99,0.30546856]
[1747831713355,2.27556417,654.73,653.72,0.30546856]
[1747831713552,2.27556417,654.73,653.73,0.30564002]
[1747831713857,2.27556417,654.73,653.74,1.47209017]
[1747831714055,2.27556417,654.73,653.75,0.30564002]
[1747831714555,2.27556417,654.73,653.76,1.16645015]
[1747831714757,2.27556417,654.73,653.77,0.30564002]
[1747831715358,2.27556417,654.73,653.78,1.16645015]
[1747831715560,2.27556417,654.73,653.79,0.30564002]
[1747831715855,2.27556417,654.73,653.8,1.47209017]
[1747831716058,2.27556417,654.73,653.81,0.30564002]
[1747831716255,2.27556417,654.73,653.82,1.16645015]
[1747831716458,2.27556417,654.6,653.82,1.47191871]
[1747831716653,2.27556417,654.6,653.83,1.16645015]
[1747831716959,2.27556417,654.6,653.84,1.16645015]
[1747831717759,2.27556417,654.6,653.85,1.16645015]
[1747831717961,2.27556417,654.6,653.86,0.30546856]
[1747831718363,2.27556417,654.6,653.87,1.16645015]
[1747831718763,2.27556417,654.6,653.88,1.16645015]
[1747831719258,2.27556417,654.61,653.89,0.30546856]
[1747831720265,2.27556417,654.61,653.71,0.30546856]
[1747831720465,2.27556417,654.61,653.9,1.16328014]
[1747831721163,2.27556417,654.61,653.71,0.30546856]
[1747831721367,2.27556417,654.61,653.72,0.30562058]
[1747831721561,2.27556417,654.61,653.73,0.30562058]
[1747831721762,2.27556417,654.61,653.74,1.46839635]
[1747831722067,2.27556417,654.63,653.75,0.30562058]
[1747831722265,2.27556417,654.63,653.75,1.46839635]
[1747831722462,2.27556417,654.63,653.76,0.30562058]
[1747831722768,2.27556417,654.63,653.77,1.46839635]
[1747831722965,2.27556417,654.63,653.78,0.30562058]
[1747831723166,2.27556417,654.63,653.79,1.46839635]
[1747831723467,2.27556417,654.63,653.8,0.30562058]
[1747831723763,2.27556417,654.63,653.81,0.30562058]
[1747831723967,2.27556417,654.63,653.82,1.46839635]
[1747831724168,2.27556417,654.63,653.83,0.30562058]
[1747831724468,2.27556417,654.63,653.84,0.30562058]
[1747831724667,2.27556417,654.63,653.85,0.30562058]
[1747831724865,2.27556417,654.65,653.86,0.30562058]
[1747831725064,2.27556417,654.65,653.87,0.30562058]
[1747831725267,2.27556417,654.65,653.88,0.30562058]
[1747831725462,2.27556417,654.65,653.89,0.30562058]
[1747831725665,2.27556417,654.65,653.9,1.46839635]
[1747831725865,2.27556417,654.65,653.9,1.16277577]
[1747831726366,2.27556417,654.65,653.91,1.46824433]
[1747831726672,2.27556417,654.65,653.92,1.16277577]
[1747831727670,2.27556417,654.64,653.93,1.46824433]
[1747831728071,2.27556417,654.64,653.94,0.30557982]
[1747831728265,2.27556417,654.64,653.95,0.30557982]
[1747831728470,2.27556417,654.64,653.93,1.46824433]
[1747831728671,2.27556417,654.64,653.94,0.6110494]
[1747831728871,2.27556417,654.64,653.95,1.46835661]
[1747831729070,2.27556417,654.64,653.96,0.30558084]
[1747831729268,2.27556417,654.64,653.95,1.16277577]
[1747831729466,2.27556417,654.64,653.96,0.30557762]
[1747831729765,2.27556417,654.64,653.96,1.16277577]
[1747831730067,2.27556417,654.64,653.97,1.16277577]
[1747831730573,2.27556417,654.66,653.97,1.46824433]
[1747831730773,2.27556417,654.66,653.98,1.16277577]
[1747831731574,2.27556417,654.66,653.99,1.16277577]
[1747831731767,2.27556417,654.66,653.99,1.46824433]
[1747831732373,2.27556417,654.66,654.0,1.16277577]
[1747831732569,2.27556417,654.66,653.99,0.30546856]
[1747831732973,0.26593712,655.07,654.01,0.30546856]
[1747831732974,2.27556417,654.62,654.01,0.30546856]
[1747831734469,2.27556417,654.62,653.87,0.30546856]
[1747831734674,2.27556417,654.62,653.88,0.30557841]
[1747831734874,2.27556417,654.62,653.89,0.30557841]
[1747831735071,2.27556417,654.62,653.9,1.46812061]
[1747831735271,2.27556417,654.62,653.91,0.30557841]
[1747831735468,2.27556417,654.62,653.92,0.30557682]
[1747831735666,2.27556417,654.62,653.93,0.30557682]
[1747831735871,2.27556417,654.62,653.94,1.46811902]
[1747831736073,2.27556417,654.68,653.95,0.30557682]
[1747831736268,2.27556417,654.68,653.96,0.30557682]
[1747831736468,2.27556417,654.68,653.97,1.46811902]
[1747831736671,2.27556417,654.68,653.98,0.30557682]
[1747831736973,2.27556417,654.68,653.99,1.46801076]
[1747831737673,2.27556417,654.68,654.0,1.1625422]
[1747831738372,2.27556417,654.67,654.01,0.30546856]
[1747831738674,2.27556417,654.67,654.02,1.1625422]
[1747831739769,2.27556417,654.67,654.03,0.30546856]
[1747831741270,2.27556417,654.68,653.87,0.30546856]
[1747831741476,2.27556417,654.68,654.04,1.16268218]
[1747831741675,2.27556417,654.68,653.87,0.30546856]
[1747831741975,2.27556417,654.68,653.88,1.46825544]
[1747831742175,2.27556417,654.68,653.89,0.30557018]
[1747831742575,2.27556417,654.68,653.9,1.16268526]
[1747831742769,2.27556417,654.68,653.91,0.61103874]
[1747831742972,2.27556417,654.68,653.92,0.30557018]
[1747831743169,2.27556417,654.68,653.93,1.46825544]
[1747831743373,2.27556417,654.68,653.94,0.30557018]
[1747831743575,2.27556417,654.68,653.95,1.46825544]
[1747831743773,2.27556417,654.68,653.96,0.30557018]
[1747831744079,2.27556417,654.68,653.97,1.16268526]
[1747831744375,2.27556417,654.68,653.98,0.30555511]
[1747831744575,2.27556417,654.68,653.99,0.30555511]
[1747831744776,2.27556417,654.68,654.0,0.30555511]
[1747831744976,2.27556417,654.68,654.01,0.30555511]
[1747831745178,2.27556417,654.68,654.02,1.46824037]
[1747831745380,2.27556417,654.68,654.03,0.30555019]
[1747831745677,2.27556417,654.68,654.04,0.30554806]
[1747831745879,2.27556417,654.68,654.05,0.30554112]
[1747831746072,2.27556417,654.68,654.04,1.16268526]
[1747831746274,2.27556417,654.68,654.05,0.61101055]
[1747831746475,2.27556417,654.68,654.05,0.30546856]
[1747831746778,2.27556417,654.68,654.06,1.46822363]
[1747831746978,2.27556417,654.68,654.06,1.16268526]
[1747831747180,2.27556417,654.68,654.07,1.16268526]
[1747831747373,2.27556417,654.75,654.07,1.46815382]
[1747831747978,2.27556417,654.75,654.08,1.16268526]
[1747831748379,2.27556417,654.75,654.09,1.16268526]
[1747831748682,2.27556417,654.75,654.1,0.30546856]
[1747831749079,2.27556417,654.75,654.11,1.16268526]
[1747831749383,2.27556417,654.75,654.1,0.30546856]
[1747831749982,2.27556417,654.77,653.95,0.12213125]
[1747831750182,2.27556417,654.77,653.96,0.30552842]
[1747831750382,2.27556417,654.77,653.97,0.30552842]
[1747831750580,2.27556417,654.77,653.98,1.46619922]
[1747831750782,2.27556417,654.77,653.99,0.30552842]
[1747831750984,2.27556417,654.77,654.0,1.46619922]
[1747831751283,2.27556417,654.77,654.01,0.61099698]
[1747831751583,2.27556417,654.77,654.02,1.46619819]
[1747831751878,2.27556417,654.77,654.03,0.30552739]
[1747831752077,2.27556417,654.77,654.04,0.30552739]
[1747831752278,2.27556417,654.77,654.05,1.46619819]
[1747831752479,2.27556417,654.77,654.06,0.30552739]
[1747831752678,2.27556417,654.77,654.07,0.30552739]
[1747831752883,2.27556417,654.9,654.08,0.30552739]
[1747831753083,2.27556417,654.9,654.09,1.1606708]
[1747831753281,2.27556417,654.9,654.1,0.30551933]
[1747831753479,2.27556417,654.9,654.11,0.30551933]
[1747831753679,2.27556417,654.9,654.09,1.1606708]
[1747831753884,2.27556417,654.9,654.1,0.3055031]
[1747831754086,2.27556417,654.9,654.11,1.4661739]
[1747831754280,2.27556417,654.9,654.1,0.30546856]
[1747831754281,2.27556417,654.9,654.12,1.1606708]
[1747831754885,2.27556417,654.9,654.13,1.1606708]
[1747831755385,2.27556417,654.9,654.14,1.1606708]
[1747831755687,2.27556417,654.95,654.14,1.46613936]
[1747831755885,2.27556417,654.95,654.15,1.1606708]
[1747831756180,2.27556417,654.95,654.16,1.1606708]
[1747831756585,2.27556417,654.95,654.14,0.30546856]
[1747831756985,2.27556417,654.95,653.95,0.30546856]
[1747831757185,2.27556417,654.95,654.15,1.15947888]
[1747831757785,2.27556417,654.95,653.95,0.30546856]
[1747831757984,2.27556417,654.95,653.96,0.30549854]
[1747831758180,2.27556417,654.95,653.97,1.46487919]
[1747831758380,2.27556417,654.95,653.98,0.30549854]
[1747831758787,2.27556417,655.02,653.99,1.15938065]
[1747831758985,2.27556417,655.02,654.0,0.30550209]
[1747831759185,2.27556417,655.02,654.01,0.30550209]
[1747831759382,2.27556417,655.02,654.02,0.30550209]
[1747831759584,2.27556417,655.02,653.99,1.15938065]
[1747831759585,2.27556417,655.02,654.03,0.30550209]
[1747831759789,2.27556417,655.02,654.04,0.30550209]
[1747831759985,2.27556417,655.02,654.05,1.46488274]
[1747831760185,2.27556417,655.02,654.06,0.30550209]
[1747831760385,2.27556417,655.02,654.06,0.61097065]
[1747831760588,2.27556417,655.02,654.07,0.30550209]
[1747831760789,2.27556417,655.02,654.06,0.30546856]
[1747831760989,2.27556417,655.02,654.07,1.46487327]
[1747831761287,2.27556417,655.02,654.08,0.30549262]
[1747831761488,2.27556417,655.02,654.09,1.46487327]
[1747831761682,2.27556417,655.02,654.1,0.30549262]
[1747831761887,2.27556417,655.02,654.11,0.30549262]
[1747831762088,2.27556417,655.01,654.12,0.30549262]
[1747831762384,2.27556417,655.01,654.13,1.46487327]
[1747831762587,2.27556417,655.01,654.14,0.30549262]
[1747831762783,2.27556417,655.01,654.15,0.30549262]
[1747831762983,2.27556417,655.01,654.16,0.30546856]
[1747831763188,2.27556417,655.01,654.17,1.15938065]
[1747831763689,2.27556417,655.01,654.18,1.15938065]
[1747831764390,2.27556417,655.01,654.19,1.15938065]
[1747831764591,2.27556417,655.03,654.19,1.46484921]
[1747831765191,2.27556417,655.03,654.19,0.30546856]
[1747831765791,2.27556417,655.03,654.2,0.30546856]
[1747831767192,2.27556417,655.05,654.21,0.30546856]
[1747831768895,2.27556417,655.05,654.22,0.30546856]
[1747831770692,2.27556417,654.98,654.23,0.30546856]
[1747831771395,2.27556417,654.98,654.01,0.12213125]
[1747831771695,2.27556417,654.98,654.02,0.30546137]
[1747831771895,2.27556417,654.98,654.03,1.46078013]
[1747831772095,2.27556417,654.98,654.04,0.30546137]
[1747831772496,2.27556417,654.98,654.05,1.15531876]
[1747831772695,2.27556417,654.98,654.06,0.30546137]
[1747831772997,2.27556417,654.98,654.07,1.15531876]
[1747831773197,2.27556417,655.01,654.08,0.30546137]
[1747831773399,2.27556417,655.01,654.07,1.46078299]
[1747831773696,2.27556417,655.01,654.08,1.15531876]
[1747831774495,2.27556417,655.01,654.09,0.30546423]
[1747831776194,2.27556417,654.93,654.0,0.30546423]
[1747831776400,2.27556417,654.93,654.01,1.46176194]
[1747831776595,2.27556417,654.93,654.02,1.46176194]
[1747831776802,2.27556417,654.93,654.03,0.30549925]
[1747831776996,2.27556417,654.93,654.02,1.15626269]
[1747831776997,2.27556417,654.93,654.04,0.61096348]
[1747831777203,2.27556417,654.93,654.04,0.30546423]
[1747831777404,2.27556417,654.93,654.05,0.3054986]
[1747831777603,2.27556417,654.93,654.05,1.15626269]
[1747831778404,2.27556417,654.91,654.06,0.30546423]
[1747831778605,2.27556417,654.91,654.07,1.15626269]
[1747831779600,2.27556417,654.91,654.08,0.30546423]
[1747831779905,2.27556417,654.91,654.09,1.15626269]
[1747831781202,2.27556417,654.89,654.1,0.30546423]
[1747831782207,2.27556417,654.89,653.96,0.30546423]
[1747831782407,2.27556417,654.89,653.97,0.30549946]
[1747831782607,2.27556417,654.89,653.98,1.46278281]
[1747831782802,2.27556417,654.89,653.99,0.30549946]
[1747831783108,2.27556417,654.89,654.0,0.3054992]
[1747831783310,2.27556417,654.89,654.01,0.3054992]
[1747831783506,2.27556417,654.89,654.02,1.46278255]
[1747831783701,2.27556417,654.89,654.03,0.3054992]
[1747831783902,2.27556417,654.89,654.04,0.3054992]
[1747831784105,2.27556417,654.88,654.05,1.46278255]
[1747831784302,2.27556417,654.88,654.06,0.3054992]
[1747831784507,2.27556417,654.88,654.07,0.3054992]
[1747831784708,2.27556417,654.88,654.08,1.15728335]
[1747831785506,2.27556417,654.88,654.09,0.30546423]
[1747831785709,2.27556417,654.88,654.1,1.15728335]
[1747831786909,2.27556417,654.9,654.1,1.15728335]
[1747831787110,2.27556417,654.9,654.11,0.30546423]
[1747831787906,2.27556417,654.9,654.12,1.15728335]
[1747831788108,2.27556417,654.9,654.13,0.30546423]
[1747831789707,2.27556417,654.89,654.14,1.15820929]
[1747831790706,2.27556417,654.89,654.15,0.30546423]
[1747831791812,0.26589547,655.24,653.72,0.26589547]
[1747831791813,2.27556417,654.88,653.97,0.42759548]
[1747831792006,2.27556417,654.88,653.98,1.46387536]
[1747831792212,2.27556417,654.88,653.99,0.30549958]
[1747831792508,2.27556417,654.88,654.0,1.46387498]
[1747831792713,2.27556417,654.88,654.01,0.3054992]
[1747831793114,2.27556417,654.88,654.02,1.15837578]
[1747831793311,2.27556417,654.88,654.03,0.61096343]
[1747831793512,2.27556417,654.88,654.04,0.3054992]
[1747831793813,2.27556417,654.88,654.05,1.15837578]
[1747831794013,2.27556417,654.88,654.06,0.3054992]
[1747831794315,2.27556417,654.88,654.07,1.15837578]
[1747831794614,2.27556417,654.86,654.08,0.3054992]
[1747831794814,2.27556417,654.86,654.09,0.3054992]
[1747831795015,2.27556417,654.86,654.1,0.3054992]
[1747831795616,2.27556417,654.86,654.11,1.15837578]
[1747831795808,2.27556417,654.86,654.12,0.61096343]
[1747831796013,2.27556417,654.86,654.13,1.46387498]
[1747831796215,2.27556417,654.86,654.13,1.15837578]
[1747831796513,2.27556417,654.86,654.14,1.46386454]
[1747831796710,2.27556417,654.86,654.15,0.30548876]
[1747831796915,2.27556417,654.86,654.16,0.30548876]
[1747831797115,2.27556417,654.86,654.16,1.15837578]
[1747831797420,2.27556417,654.88,654.17,0.30546423]
[1747831797721,2.27556417,654.88,654.18,1.15837578]
[1747831799314,2.27556417,654.88,654.19,0.30546423]
[1747831799519,2.27556417,654.88,654.2,1.15837578]
[1747831801022,2.27556417,654.85,654.21,0.30546423]
[1747831802126,2.27556417,654.85,654.07,0.30546423]
[1747831802320,2.27556417,654.85,654.08,0.30548188]
[1747831802521,2.27556417,654.85,654.09,0.30548188]
[1747831802824,2.27556417,654.85,654.1,0.30548236]
[1747831803024,2.27556417,654.85,654.11,1.46434431]
[1747831803223,2.27556417,654.85,654.12,0.30548236]
[1747831803420,2.27556417,654.85,654.13,0.30548236]
[1747831803620,2.27556417,654.85,654.14,0.30548236]
[1747831803823,2.27556417,654.85,654.15,1.15886195]
[1747831804023,2.27556417,654.85,654.16,0.30548236]
[1747831804225,2.27556417,654.84,654.16,0.30548236]
[1747831804424,2.27556417,654.84,654.17,1.15886195]
[1747831804726,2.27556417,654.84,654.18,0.30548337]
[1747831805025,2.27556417,654.84,654.17,1.15886195]
[1747831805225,2.27556417,654.84,654.19,1.15886195]
[1747831805525,2.27556417,654.84,654.2,0.30546423]
[1747831805924,2.27556417,654.84,654.21,1.15886195]
[1747831807230,2.27556417,654.97,654.22,0.30546423]
[1747831808328,2.27556417,654.97,654.01,0.30546423]
[1747831808531,2.27556417,654.97,654.02,0.30551156]
[1747831808823,2.27556417,654.97,654.03,0.30551156]
[1747831809030,2.27556417,654.97,654.04,0.30551156]
[1747831809231,2.27556417,654.97,654.05,0.30551156]
[1747831809531,2.27556417,654.97,654.06,1.46526386]
[1747831809730,2.27556417,654.97,654.07,0.30551156]
[1747831809931,2.27556417,654.97,654.08,0.30551156]
[1747831810125,2.27556417,654.97,654.09,0.30551156]
[1747831810328,2.27556417,654.97,654.1,0.30551156]
[1747831810528,2.27556417,654.97,653.83,0.16308655]
[1747831810529,2.27556417,654.92,654.11,1.1597523]
[1747831810929,2.27556417,654.92,654.1,1.1597523]
[1747831811532,2.27556417,654.92,654.11,0.30546423]
[1747831812031,2.27556417,654.92,654.12,1.1597523]
[1747831813134,2.27556417,654.69,654.13,0.30546423]
[1747831814335,2.27556417,654.69,654.0,0.30546423]
[1747831814537,2.27556417,654.69,654.01,1.46561346]
[1747831814729,2.27556417,654.69,654.02,0.30553414]
[1747831814934,2.27556417,654.69,654.03,1.46561346]
[1747831815131,2.27556417,654.69,654.04,1.46561346]
[1747831815337,2.27556417,654.69,654.05,0.30553414]
[1747831815637,2.27556417,654.69,654.06,1.46561346]
[1747831815936,2.27556417,654.7,654.07,1.46561346]
[1747831816131,2.27556417,654.7,654.08,1.46561346]
[1747831816335,2.27556417,654.7,654.08,1.16007932]
[1747831816637,2.27556417,654.7,654.09,1.16007932]
[1747831816938,2.27556417,654.7,654.1,0.30546423]
[1747831817138,2.27556417,654.7,654.11,1.16007932]
[1747831817537,2.27556417,654.7,654.12,1.16007932]
[1747831818339,2.27556417,654.75,654.13,1.46554355]
[1747831818639,2.27556417,654.75,654.13,0.30546423]
[1747831819541,2.27556417,654.75,653.98,0.30546423]
[1747831819742,2.27556417,654.75,653.99,0.30552411]
[1747831820038,2.27556417,654.75,654.0,1.46443292]
[1747831820234,2.27556417,654.75,654.01,0.30552411]
[1747831820434,2.27556417,654.75,654.02,0.30552411]
[1747831820639,2.27556417,654.75,654.03,1.46443292]
[1747831820835,2.27556417,654.75,654.04,1.46443292]
[1747831821038,2.27556417,654.75,654.05,0.30552411]
[1747831821340,2.27556417,654.75,654.06,0.30552245]
[1747831821539,2.27556417,654.75,654.07,1.46443126]
[1747831821741,2.27556417,654.75,654.08,0.30552245]
[1747831821938,2.27556417,654.75,654.09,0.30552245]
[1747831822137,2.27556417,654.75,654.1,0.30552245]
[1747831822338,2.27556417,654.75,654.09,1.15890881]
[1747831822539,2.27556417,654.75,654.1,1.46442902]
[1747831822839,2.27556417,654.75,654.11,0.30552021]
[1747831823039,2.27556417,654.75,654.12,1.46442902]
[1747831823238,2.27556417,654.75,654.13,0.61098444]
[1747831823441,2.27556417,654.75,654.14,1.46442902]
[1747831823641,2.27556417,654.75,654.15,0.30552021]
[1747831823841,2.27556417,654.75,654.16,0.30552021]
[1747831824141,2.27556417,654.75,654.17,1.46442902]
[1747831824341,2.27556417,654.75,654.18,0.30552021]
[1747831824537,2.27556417,654.93,654.18,0.30546423]
[1747831824743,2.27556417,654.93,654.19,1.46439108]
[1747831824945,2.27556417,654.93,654.19,1.15890881]
[1747831825143,2.27556417,654.93,654.2,1.15890881]
[1747831825639,2.27556417,654.93,654.21,1.15890881]
[1747831826143,2.27556417,654.93,654.22,1.15890881]
[1747831826343,2.27556417,654.93,654.23,0.30546423]
[1747831826942,2.27556417,654.93,654.24,1.15890881]
[1747831827845,2.27556417,654.97,654.25,1.46437304]
[1747831828245,2.27556417,654.97,654.26,1.15890881]
[1747831828744,2.27556417,654.97,654.27,0.30546423]
[1747831830748,2.27556417,654.95,654.1,0.12213125]
[1747831830946,2.27556417,654.95,654.11,0.30545855]
[1747831831146,2.27556417,654.95,654.12,0.30545855]
[1747831831447,2.27556417,654.95,654.13,1.46233271]
[1747831831647,2.27556417,654.95,654.14,0.30545855]
[1747831831845,2.27556417,654.95,654.15,1.46233271]
[1747831832046,2.27556417,654.95,654.16,0.30545855]
[1747831832349,2.27556417,654.95,654.16,0.30546423]
[1747831832547,2.27556417,654.95,654.17,1.46233807]
[1747831832749,2.27556417,654.95,654.18,1.46233807]
[1747831832946,2.27556417,654.95,654.19,0.30546391]
[1747831833147,2.27556417,654.95,654.2,0.30546391]
[1747831833349,2.27556417,654.95,654.21,0.30546391]
[1747831833643,2.27556417,654.95,654.22,1.46233807]
[1747831833946,2.27556417,654.86,654.23,0.30546391]
[1747831834142,2.27556417,654.86,654.24,1.46233807]
[1747831834344,2.27556417,654.86,654.24,1.15687416]
[1747831834547,2.27556417,654.86,654.25,1.46231662]
[1747831834748,2.27556417,654.86,654.26,0.61090669]
[1747831835048,2.27556417,654.86,654.27,0.30544246]
[1747831835347,2.27556417,654.86,654.26,0.30546423]
[1747831835650,2.27556417,654.86,654.27,1.46231384]
[1747831835844,2.27556417,654.86,654.28,1.15687416]
[1747831836251,2.27556417,654.86,654.29,1.15687416]
[1747831836452,2.27556417,655.03,654.29,1.15687416]
[1747831836652,2.27556417,655.03,654.3,1.15687416]
[1747831836951,2.27556417,655.03,654.31,1.15687416]
[1747831837451,2.27556417,655.03,654.28,0.30546423]
[1747831837654,2.27556417,655.03,654.29,0.30546423]
[1747831838051,2.27556417,655.03,654.3,1.15625836]
[1747831838753,2.27556417,655.03,654.31,1.15625836]
[1747831839255,2.27556417,655.07,654.32,0.30546423]
[1747831839455,2.27556417,655.07,654.32,1.46172259]
[1747831839954,2.27556417,655.07,654.33,0.30546423]
[1747831840154,2.27556417,655.07,654.34,1.46059598]
[1747831840355,2.27556417,655.07,654.35,0.30538244]
[1747831840554,2.27556417,655.07,654.36,1.46059598]
[1747831840750,2.27556417,655.07,654.37,0.30538244]
[1747831840953,2.27556417,655.07,654.38,0.30538244]
[1747831841153,2.27556417,655.07,654.36,1.15521354]
[1747831841354,2.27556417,655.07,654.37,1.46058776]
[1747831841554,2.27556417,655.07,654.37,1.15521354]
[1747831841755,2.27556417,655.07,654.38,1.15521354]
[1747831842055,2.27556417,655.07,654.39,1.15521354]
[1747831842455,2.27556417,655.23,654.39,1.46067777]
[1747831843055,2.27556417,655.23,654.39,0.30546423]
[1747831843650,2.27556417,655.23,654.4,0.30546423]
[1747831845658,2.27556417,655.17,654.41,0.30546423]
[1747831846856,2.27556417,655.17,654.42,0.30546423]
[1747831848760,2.27556417,655.16,654.43,0.30546423]
[1747831850055,2.27556417,655.16,654.44,0.30546423]
[1747831851456,2.27556417,655.22,654.45,0.30546423]
[1747831852563,2.27556417,655.22,654.46,0.30546423]
[1747831854160,2.27556417,655.23,654.47,0.30546423]
[1747831855964,2.27556417,655.23,654.48,0.30546423]
[1747831858167,2.27556417,655.28,654.23,0.12213125]
[1747831858368,2.27556417,655.28,654.24,1.45376364]
[1747831858567,2.27556417,655.28,654.25,0.3053612]
[1747831858870,2.27556417,655.28,654.26,0.3053612]
[1747831859065,2.27556417,655.28,654.27,0.3053612]
[1747831859261,2.27556417,655.28,654.28,1.45376364]
[1747831859462,2.27556417,655.28,654.29,1.45376364]
[1747831859765,2.27556417,655.28,654.3,0.3053612]
[1747831859966,2.27556417,655.28,654.31,0.3053612]
[1747831860165,2.27556417,655.28,654.32,0.3053612]
[1747831860365,2.27556417,655.28,654.31,1.14840244]
[1747831860568,2.27556417,655.28,654.33,1.14840244]
[1747831860960,2.27556417,655.28,654.34,1.14840244]
[1747831861165,2.27556417,655.26,654.35,1.14840244]
[1747831861467,2.27556417,655.26,654.34,0.305357]
[1747831862168,2.27556417,655.26,654.35,0.305357]
[1747831864470,2.27556417,655.32,654.26,0.305357]
[1747831864671,2.27556417,655.32,654.27,1.45188936]
[1747831864965,2.27556417,655.32,654.28,0.30536435]
[1747831865171,2.27556417,655.32,654.29,0.30536435]
[1747831865370,2.27556417,655.32,654.3,0.30536435]
[1747831865769,2.27556417,655.32,654.31,0.305357]
[1747831865973,2.27556417,655.32,654.32,1.14652501]
[1747831866474,2.27556417,655.32,654.33,1.14652501]
[1747831866676,2.27556417,655.32,654.31,0.305357]
[1747831867077,2.27556417,655.32,654.32,1.14641721]
[1747831867277,2.27556417,655.4,654.32,1.14641721]
[1747831867673,2.27556417,655.4,654.33,1.14641721]
[1747831868379,2.27556417,655.4,654.34,0.305357]
[1747831869881,2.27556417,655.43,654.18,0.305357]
[1747831870080,2.27556417,655.43,654.19,0.30537099]
[1747831870375,2.27556417,655.43,654.2,0.30537099]
[1747831870580,2.27556417,655.43,654.21,0.30537099]
[1747831870779,2.27556417,655.43,654.22,1.45187208]
[1747831870980,2.27556417,655.43,654.23,0.30537099]
[1747831871181,2.27556417,655.43,654.24,0.305357]
[1747831871476,2.27556417,655.43,654.25,1.45187208]
[1747831871675,2.27556417,655.43,654.26,0.30537099]
[1747831872080,2.27556417,655.43,654.27,1.14650109]
[1747831872280,2.27556417,655.43,654.28,0.30537099]
[1747831872481,2.27556417,655.43,654.27,1.14650109]
[1747831872682,2.27556417,655.41,654.29,0.305357]
[1747831873781,2.27556417,655.41,654.15,0.305357]
[1747831873984,2.27556417,655.41,654.16,0.30541819]
[1747831874179,2.27556417,655.41,654.17,0.30541819]
[1747831874381,2.27556417,655.41,654.18,0.30541819]
[1747831874583,2.27556417,655.41,654.19,1.45449568]
[1747831874783,2.27556417,655.41,654.2,0.30541819]
[1747831875082,2.27556417,655.41,654.19,1.14907749]
[1747831875283,2.27556417,655.2,654.21,1.14907749]
[1747831875784,2.27556417,655.2,654.2,1.14907749]
[1747831876281,2.27556417,655.2,654.21,0.30542009]
[1747831876482,2.27556417,655.2,654.2,1.14907749]
[1747831876683,2.27556417,655.2,654.21,0.30541912]
[1747831876886,2.27556417,655.2,654.21,0.305357]
[1747831877186,2.27556417,655.2,654.22,1.14907749]
[1747831877986,2.27556417,655.19,654.23,0.305357]
[1747831878586,2.27556417,655.19,654.24,1.14907749]
[1747831879187,2.27556417,655.19,654.25,0.3054135]
[1747831879388,2.27556417,655.19,654.26,1.14907749]
[1747831881187,2.27556417,655.12,654.27,0.305357]
[1747831882587,2.27556417,655.12,654.28,1.14907749]
[1747831883488,2.27556417,655.12,654.27,0.305357]
[1747831883689,2.27556417,655.02,654.29,0.305357]
[1747831884585,2.27556417,655.02,654.3,1.15347694]
[1747831885189,2.27556417,655.02,654.22,0.305357]
[1747831885393,2.27556417,655.02,654.23,0.30541667]
[1747831885586,2.27556417,655.02,654.24,0.30541667]
[1747831885785,2.27556417,655.02,654.25,1.45904844]
[1747831885987,2.27556417,655.02,654.25,1.15363177]
[1747831886189,2.27556417,655.02,654.22,0.305357]
[1747831886391,2.27556417,654.97,654.26,0.305357]
[1747831887591,2.27556417,654.97,654.16,0.305357]
[1747831887792,2.27556417,654.97,654.17,1.45968744]
[1747831888086,2.27556417,654.97,654.18,0.30544733]
[1747831888590,2.27556417,654.97,654.19,1.15424011]
[1747831888787,2.27556417,654.94,654.2,0.30544733]
[1747831889092,2.27556417,654.94,654.19,1.45959711]
[1747831889293,2.27556417,654.94,654.21,1.15424011]
[1747831889891,2.27556417,654.94,654.2,1.15424011]
[1747831890187,2.27556417,654.94,654.21,0.30544945]